{"text_format":"1","workbook":"xlsx","n_sheets":4,"sheets":["Invoice","Watts BF1","Watts BF1 (2)","Water Rep"],"not_rendered":{"charts":0,"images":1,"macros":0,"external_links":1,"defined_names":15,"comments":0,"pivot_tables":0},"unopened":[],"bounds":{"document_bytes":16777216,"sheet_cells":100000,"rows_first":2000,"rows_last":500,"rows_between":2000,"halvings":0,"cell_chars":16384,"cell_head_chars":4096},"cells_cut":0,"cells_raw":0,"read":"whole","date_system":"1900"}

{"sheet":"Invoice","index":0,"n_rows":59,"n_cols":19,"rows_kept":59,"cut":false,"hidden":false,"merged":[[43,0,44,2],[43,3,44,4],[45,0,46,2],[30,0,30,1],[36,0,36,1],[34,0,34,1],[36,2,36,9],[31,2,31,9],[31,0,31,1],[38,6,38,7],[38,8,38,10],[25,2,25,9],[39,12,40,12],[39,11,40,11],[41,10,41,11],[39,10,40,10],[41,0,42,2],[41,3,42,4],[41,5,42,5],[41,6,42,7],[8,15,8,16],[9,15,9,16],[10,15,10,16],[8,1,8,7],[12,4,12,5],[22,0,22,1],[16,2,16,3],[29,0,29,1],[28,0,28,1],[15,2,15,3],[26,2,26,9],[16,0,16,1],[13,2,13,3],[9,1,9,7],[12,2,12,3],[12,0,12,1],[10,1,10,7],[16,4,16,5],[16,7,16,9],[22,2,22,9],[24,2,24,9],[21,2,21,9],[23,0,23,1],[24,0,24,1],[35,2,35,9],[34,2,34,9],[33,0,33,1],[35,0,35,1],[33,2,33,9],[39,8,42,9],[39,5,40,5],[32,2,32,9],[51,12,52,12],[51,0,51,2],[45,10,45,11],[51,10,52,11],[46,10,46,11],[44,8,46,9],[44,10,44,11],[52,7,52,9],[43,8,43,9],[43,10,43,11],[51,3,51,6],[42,10,42,11],[45,3,46,4],[45,5,46,5],[43,5,44,5],[38,3,38,4],[0,5,0,10],[1,5,1,10],[2,5,2,10],[3,5,3,10],[4,5,4,10],[13,0,13,1],[15,4,15,5],[14,6,14,7],[14,8,14,9],[15,6,15,7],[8,9,8,12],[9,9,9,12],[10,9,10,12],[6,0,11,0],[7,9,7,12],[15,8,15,9],[14,0,14,1],[15,0,15,1],[1,12,2,12],[13,4,13,5],[14,4,14,5],[5,8,11,8],[14,2,14,3],[7,1,7,7],[55,4,55,9],[54,4,54,9],[50,0,50,2],[50,3,50,10],[51,7,51,9],[37,0,37,9],[52,3,52,6],[20,0,20,1],[27,0,27,1],[25,0,25,1],[26,0,26,1],[21,0,21,1],[20,2,20,9],[27,2,27,9],[28,2,28,9],[30,2,30,9],[23,2,23,9],[29,2,29,9],[39,6,40,7],[32,0,32,1],[39,0,40,2],[39,3,40,4],[45,6,46,7],[43,6,44,7]]}
[null,null,null,null,null,"Fire Suppression Services, Inc."]
[null,null,null,null,null,"3802 South 2300 East",null,null,null,null,null,null,1]
[null,null,null,null,null,"Millcreek, Utah  84109-3421"]
[null,null,null,null,null,"Contractor License No. 92-252208-5501"]
[null,null,null,null,null,"801.277.6464  •  800.273.6465  •  801.278.2199 - FAX"]
[null,null,null,null,null,null,null,null,"JOB SITE",null,null,"DATE","2013-10-25"]
["BILLING"]
[null,null,null,null,null,null,null,null,null,"McDonald",null,null,null,null,null,null,null,"License","BF License"]
[null,null,null,null,null,null,null,null,null,null,null,null,null,null,null,"Tal Gray",null,232]
[null,null,null,null,null,null,null,null,null,null,null,null,null,null,null,"Heath Danger Field",null,61931,"45-01369"]
[null,".",null,null,null,null,null,null,null,{"$f":"+B11","v":"."},null,null,null,null,null,"Kent"]
[]
[null,null,"Billing",null,"Job Site",null,"X","ANNUAL ",null,"SEMI-ANNUAL ","TANK DATE","Cartridge Type","Cartridge Date"]
["PHONE",null,null,null,null,null,null,"QUARTERLY",null,"MONTHLY"]
["FAX",null,null,null,null,null,"SALESMAN :"]
["CONTACT",null,null,null,null,null,"LICENSE NUMBER"]
["DIRECT #",null,null,null,null,null,"E-MAIL : "]
[null,null,"MAINTENANCE",null,null,"INSTALLATION",null,"EXTINGUISHERS",null," EMERGENCY","Mileage One-Way",null,"TIME"]
[null,null,"DRY CHEMICAL SYSTEM",null,null,"EMERGENCY LIGHTING",null,"STEAM CLEAN",null,"REPAIR","Drive Time One-Way"]
[null,"X","WET SYSTEM",null,"X","WATER SPRINKLER",null,"ALARMS","X","BACKFLOW","UNIT PRICE","NON TAX","TAXABLE"]
[null,null,null,null,null,null,null,null,null,null,0,{"$f":"+A21*K21","v":0},0]
[1,null,"Annual- Wet Fire Sprinkler Inspection",null,null,null,null,null,null,null,0,{"$f":"+A22*K22","v":0},0]
[1,null,"Annual- Backflow Inspection (3\" inch DC)",null,null,null,null,null,null,null,0,0,0]
[1,null,"Annual- Backflow Inspection (2\" inch RP)",null,null,null,null,null,null,null,0,0,0]
[null,null,null,null,null,null,null,null,null,null,0,0,0]
[null,null,null,null,null,null,null,null,null,null,0,0,0]
[null,null,null,null,null,null,null,null,null,null,0,0,0]
[null,null,null,null,null,null,null,null,null,null,0,0,0]
[null,null,null,null,null,null,null,null,null,null,0,0,0]
[null,null,null,null,null,null,null,null,null,null,0,0,0]
[null,null,null,null,null,null,null,null,null,null,0,0,0]
[null,null,null,null,null,null,null,null,null,null,0,0,0]
[null,null,null,null,null,null,null,null,null,null,0,0,0]
[null,null,null,null,null,null,null,null,null,null,0,{"$f":"+A34*K34","v":0},0]
[null,null,null,null,null,null,null,null,null,null,0,{"$f":"+A35*K35","v":0},0]
[null,null,null,null,null,null,null,null,null,null,0,{"$f":"+A36*K36","v":0},0]
[null,null,null,null,null,null,null,null,null,null,0,{"$f":"+A37*K37","v":0},0]
["HAZARDOUS MATERIAL DISPOSAL CHARGE",null,null,null,null,null,null,null,null,null,null,null,0]
[null,null,null,"DUE WHEN",null,"LAST COMPANY","NUMBER ON PROPERTY",null,"8% MISCELLANEOUS MATERIALS, INSURANCE, ETC.",null,null,{"$f":"SUM(L21:L38)*0.08","v":0},{"$f":"SUM(M21:M38)*0.08","v":0}]
["EXTINGUISHER",null,null,null,null,null,null,null,"CODE",null,"SUBTOTAL",{"$f":"SUM(L21:L39)","v":0},{"$f":"SUM(M21:M39)","v":0}]
[]
["EM / EX LIGHTING",null,null,null,null,null,null,null,null,null,"TRUCK"]
[null,null,null,null,null,null,null,null,null,null,"Non-Taxable Total",null,{"$f":"+L40","v":0}]
["HOOD CLEANING",null,null,null,null,null,null,null,"REFILE",null,"Taxable Sales",null,{"$f":"+M40","v":0}]
[null,null,null,null,null,null,null,null,"2014-10-25",null,"SALES TAX",null,{"$f":"M40*0.0725","v":0}]
["FILTER CONDITION",null,null,null,null,null,null,null,null,null,"Freight",null,0]
[null,null,null,null,null,null,null,null,null,null,"Handling",null,0]
["I, RECEIPT OF COPY: CUSTOMER ACKNOWLEDGES RECEIPT OF COPY AND THAT HE UNDERSTANDS ALL OF THIS AGREEMENT AND PARTICULARLY PARAGRAPHS 1,2,3,4 AND 5 ON THE REVERSE "]
["WHICH SETS FORTH COMPANY'S MAXIMUM LIABILITY.  THE SYSTEM'S HAVE BEEN SERVICED  IN ACCORDANCE WITH NATIONAL FIRE PROTECTION STANDARDS AND CODES OR CURRENT MFG."]
["SERVICE REQUIREMENTS AND DOES NOT CERTIFY THE DESIGN AND / OR THE INSTALLATION CRITERIA."]
[null,null,null,"RECEIVED IN GOOD ORDER  AND ACCEPTED"]
["Net 15 Days",null,null,"WORK AUTHORIZATION NUMBER",null,null,null,null,null,null,"TOTAL",null,{"$f":"SUM(M42:M51)","v":0}]
[null,null,null,"PURCHASE / WORK  ORDER NUMBER"]
["  Cash",null,null,null,null,null,null,null,null,null,"TIMES ARE CORRECT AND JOB COMPLETED SATISFACTORILY "]
["  Check",null,null,"BY X",null,null,null,null,null,null,"CLAIMS WILL NOT BE HONORED AFTER TEN (10) DAYS FROM DATE"]
["  Credit ",null,null,null,"BUYER SHALL PAY SELLER FOR THIS PURCHASE",null,null,null,null,null,"OF SERVICE."]
["INTEREST WILL BE CHARGED ON  OVERDUE ACCOUNTS.   3% PER MONTH",null,null,null,null,null,null,null,null,"MINIMUM BILLING OF $35.00"]
[]
[null,null,null,null,null,"\"THIS INVOICE  IS  ALSO YOUR STATEMENT\"",null,null,null,null,null,null,"THANK YOU"]

{"sheet":"Watts BF1","index":1,"n_rows":82,"n_cols":17,"rows_kept":82,"cut":false,"hidden":false,"merged":[[81,4,81,5],[71,4,71,5],[18,3,18,4],[18,7,18,8],[41,3,41,4],[41,7,41,8],[80,3,80,6],[74,0,74,6],[64,0,64,6],[66,0,66,6],[67,3,67,6],[68,3,68,6],[69,3,69,6],[70,3,70,6],[76,0,76,6],[77,3,77,6],[78,3,78,6],[79,3,79,6],[61,0,61,16],[55,7,55,9],[57,3,57,6],[58,3,58,6],[59,3,59,6],[60,3,60,6],[59,12,59,16],[60,12,60,16],[35,1,38,4],[35,5,38,8],[35,9,38,12],[35,13,38,16],[34,2,34,3],[34,6,34,7],[34,10,34,11],[34,14,34,15],[58,12,58,16],[48,5,48,8],[48,12,48,15],[56,0,56,6],[50,2,50,16],[51,2,51,16],[52,2,52,16],[54,10,54,13],[54,2,54,5],[55,2,55,5],[33,2,33,3],[33,6,33,7],[33,10,33,11],[33,14,33,15],[32,2,32,3],[32,6,32,7],[32,10,32,11],[32,14,32,15],[30,14,30,15],[30,16,31,16],[31,2,31,3],[31,6,31,7],[31,10,31,11],[31,14,31,15],[30,2,30,3],[30,6,30,7],[30,10,30,11],[30,13,31,13],[28,14,28,15],[28,16,29,16],[29,2,29,3],[29,6,29,7],[29,10,29,11],[29,14,29,15],[28,2,28,3],[28,6,28,7],[28,10,28,11],[28,13,29,13],[25,1,25,2],[25,3,25,4],[25,5,25,6],[25,7,25,8],[25,9,25,10],[25,11,25,12],[25,13,25,14],[25,15,25,16],[27,9,27,10],[27,11,27,12],[27,13,27,14],[27,15,27,16],[27,1,27,2],[27,3,27,4],[27,5,27,6],[27,7,27,8],[26,9,26,10],[26,11,26,12],[26,13,26,14],[26,15,26,16],[26,1,26,2],[26,3,26,4],[26,5,26,6],[26,7,26,8],[11,9,11,11],[16,1,16,4],[16,5,16,8],[16,9,16,12],[9,2,9,6],[9,9,9,11],[10,2,10,6],[10,9,10,11],[13,8,13,16],[14,11,14,16],[16,13,16,16],[8,2,8,6],[8,9,8,11],[3,5,3,10],[3,13,3,14],[4,5,4,10],[6,0,6,13],[6,14,6,16],[0,5,0,10],[1,5,1,10],[2,5,2,10],[2,13,2,14],[7,13,7,14],[7,15,7,16]]}
[null,null,null,null,null,"Fire Suppression Services, Inc."]
[null,null,null,null,null,"3802 South 2300 East"]
[null,null,null,null,null,"Millcreek, Utah  84109-3421",null,null,null,null,null,null,"Service #  ",19815]
[null,null,null,null,null,"Contractor License No. 92-252208-5501",null,null,null,null,null,null,"Date  ","2013-10-25"]
[null,null,null,null,null,"801.277.6464  •  800.273.6465  •  801.278.2199 - FAX"]
[]
["BACKFLOW ASSEMBLY TEST FORM",null,null,null,null,null,null,null,null,null,null,null,null,null,"Type Of"]
[null,null,null,null,null,null,null,null,null,null,null,null,null,"Protection",null,"Assembly"]
["Job Site",null,null,null,null,null,null,null,"Make","Ames",null,null,null,"Zone",null,"SVB"]
[null,null,null,null,null,null,null,null,"Model","2000B",null,null,null,"Domestic",null,"PVB"]
[null,null,null,null,null,null,null,null,"Size","1 1/4\" inch",null,null,null,"Individual",null,"DC","X"]
[null,null,null,null,null,null,null,null,"Serial Number","KG-1391",null,null,null,"Containment",null,"RP"]
[null,"Replacement",null,null,null,null,null,null,null,null,null,null,null,"Fire Protection","X","DDC"]
[null,"Existing","X",null,null,"Location Of Assembly",null,null,"East Back Entry"]
[null,"New",null,null,null,"Assembly Connected To What Equipment",null,null,null,null,null,"Fire Sprinkler Riser"]
[]
[null,"CHECK VALVE #1",null,null,null,"CHECK VALVE #2",null,null,null,"DP RELIEF VALVE",null,null,null,"SVB & PVB AIR INLET"]
[]
["INITIAL ","PSI Across",null,1.7,null,"PSI Across",null,1.7,null,null,"Opened @ ",null,"PSI",null,"Opened @ ",null,"PSI"]
["TEST"]
[null,null,null,"Close Tight","X",null,null,"Close Tight","X",null,null,"Close Tight",null,null,null,"Close Tight"]
[null,null,null,null,null,null,null,null,null,null,null,"Did Not Open",null,null,null,"Did Not Open"]
[null,null,null,"Leaked",null,null,null,"Leaked",null,null,null,"Leaked",null,null,null,"Leaked"]
[]
[]
[null,"Parts",null,null,null,"Parts",null,null,null,"Parts",null,null,null,"Parts"]
[null,"Cleaned",null,"Installed",null,"Cleaned",null,"Installed",null,"Cleaned",null,"Installed",null,"Cleaned",null,"Installed"]
[]
[null,null,"Disk",null,null,null,"Disk",null,null,null,"Disk Diaphragm",null,null,null,"Air Inlet"]
["REPAIRS",null,"Spring",null,null,null,"Spring",null,null,null,"Spring",null,null,null,"Disk"]
[null,null,"Guide",null,null,null,"Guide",null,null,null,"Guide",null,null,null,"Air Inlet"]
[null,null,"Seat",null,null,null,"Seat",null,null,null,"Seat",null,null,null,"Spring"]
[null,null,"O-Rings",null,null,null,"O-Rings",null,null,null,"O-Rings"]
[null,null,"All Parts",null,null,null,"All Parts",null,null,null,"All Parts",null,null,null,"All Parts"]
[null,null,"OTHER",null,null,null,"OTHER",null,null,null,"OTHER",null,null,null,"OTHER"]
[null,"Describe:",null,null,null,"Describe:",null,null,null,"Describe:",null,null,null,"Describe:"]
[]
[]
[]
[]
[]
["FINAL","PSI Across",null,1.7,null,"PSI Across",null,1.7,null,null,"Opened @ ",null,"PSI",null,"Opened @ ",null,"PSI"]
["TEST"]
[null,null,null,"Close Tight","X",null,null,"Close Tight","X",null,null,"Close Tight",null,null,null,"Close Tight"]
[null,null,null,null,null,null,null,null,null,null,null,"Did Not Open",null,null,null,"Did Not Open"]
[null,null,null,"Leaked",null,null,null,"Leaked",null,null,null,"Leaked",null,null,null,"Leaked"]
[]
[]
[null,"Assembly     ",null,null,"Passed Date :","2013-10-25",null,null,null,null,null,"Failed Date :"]
[]
[null,"Comments:  "]
[]
[]
[]
[null,"Initial Test By :  ","Heath Dangerfield",null,null,null,null,null,null,"Final Test By :  "]
[null,"Repaired By :  ",null,null,null,null,"Date :  "]
["TEST KIT INFORMATION"]
[null,null,"Make Of The Test Kit","Mid-West Instrument",null,null,null,null,null,null,null,"Back Flow "]
[null,null,"Model :",845,null,null,null,null,null,null,null,"Inspectors Signature :","Heath Dangerfield"]
[null,null,"Serial Number :","05081169",null,null,null,null,null,null,null,"Ut. Inspectors Number :","#08065"]
[null,null,"Calibration Date :","2013-06-07",null,null,null,null,null,null,null,"Inspectors Number :","#45-01369"]
["I Certify the above has been performed and I am aware of the final performance"]
[]
[]
["Heath "]
[]
["TEST KIT INFORMATION"]
[null,null,"Make Of The Test Kit","Mid-West Instrument"]
[null,null,"Model :",845]
[null,null,"Serial Number :","05081169"]
[null,null,"Calibration Date :","2013-06-07"]
[null,null,"Inspectors Number :",null,"45-01369"]
[]
[]
["Lucas Montoya"]
[]
["TEST KIT INFORMATION"]
[null,null,"Make Of The Test Kit","Mid-West Instrument"]
[null,null,"Model :",845]
[null,null,"Serial Number :","08061431"]
[null,null,"Calibration Date :","2006-10-10"]
[null,null,"Inspectors Number :",null,"45-01092"]

{"sheet":"Watts BF1 (2)","index":2,"n_rows":82,"n_cols":17,"rows_kept":82,"cut":false,"hidden":false,"merged":[[81,4,81,5],[74,0,74,6],[76,0,76,6],[77,3,77,6],[78,3,78,6],[79,3,79,6],[80,3,80,6],[66,0,66,6],[67,3,67,6],[68,3,68,6],[69,3,69,6],[70,3,70,6],[71,4,71,5],[59,3,59,6],[59,12,59,16],[60,3,60,6],[60,12,60,16],[61,0,61,16],[64,0,64,6],[55,2,55,5],[55,7,55,9],[56,0,56,6],[57,3,57,6],[58,3,58,6],[58,12,58,16],[48,5,48,8],[48,12,48,15],[50,2,50,16],[51,2,51,16],[52,2,52,16],[54,2,54,5],[54,10,54,13],[35,1,38,4],[35,5,38,8],[35,9,38,12],[35,13,38,16],[41,3,41,4],[41,7,41,8],[33,2,33,3],[33,6,33,7],[33,10,33,11],[33,14,33,15],[34,2,34,3],[34,6,34,7],[34,10,34,11],[34,14,34,15],[30,16,31,16],[31,2,31,3],[31,6,31,7],[31,10,31,11],[31,14,31,15],[32,2,32,3],[32,6,32,7],[32,10,32,11],[32,14,32,15],[29,10,29,11],[29,14,29,15],[30,2,30,3],[30,6,30,7],[30,10,30,11],[30,13,31,13],[30,14,30,15],[27,13,27,14],[27,15,27,16],[28,2,28,3],[28,6,28,7],[28,10,28,11],[28,13,29,13],[28,14,28,15],[28,16,29,16],[29,2,29,3],[29,6,29,7],[27,1,27,2],[27,3,27,4],[27,5,27,6],[27,7,27,8],[27,9,27,10],[27,11,27,12],[25,13,25,14],[25,15,25,16],[26,1,26,2],[26,3,26,4],[26,5,26,6],[26,7,26,8],[26,9,26,10],[26,11,26,12],[26,13,26,14],[26,15,26,16],[25,1,25,2],[25,3,25,4],[25,5,25,6],[25,7,25,8],[25,9,25,10],[25,11,25,12],[14,11,14,16],[16,1,16,4],[16,5,16,8],[16,9,16,12],[16,13,16,16],[18,3,18,4],[18,7,18,8],[9,2,9,6],[9,9,9,11],[10,2,10,6],[10,9,10,11],[11,9,11,11],[13,8,13,16],[4,5,4,10],[6,0,6,13],[6,14,6,16],[7,13,7,14],[7,15,7,16],[8,2,8,6],[8,9,8,11],[0,5,0,10],[1,5,1,10],[2,5,2,10],[2,13,2,14],[3,5,3,10],[3,13,3,14]]}
[null,null,null,null,null,"Fire Suppression Services, Inc."]
[null,null,null,null,null,"3802 South 2300 East"]
[null,null,null,null,null,"Millcreek, Utah  84109-3421",null,null,null,null,null,null,"Service #  ",19592]
[null,null,null,null,null,"Contractor License No. 92-252208-5501",null,null,null,null,null,null,"Date  ","2013-10-25"]
[null,null,null,null,null,"801.277.6464  •  800.273.6465  •  801.278.2199 - FAX"]
[]
["BACKFLOW ASSEMBLY TEST FORM",null,null,null,null,null,null,null,null,null,null,null,null,null,"Type Of"]
[null,null,null,null,null,null,null,null,null,null,null,null,null,"Protection",null,"Assembly"]
["Job Site",null,null,null,null,null,null,null,"Make","Wilkins",null,null,null,"Zone",null,"SVB"]
[null,null,null,null,null,null,null,null,"Model","375XL",null,null,null,"Domestic",null,"PVB"]
[null,null,null,null,null,null,null,null,"Size","2\" inch",null,null,null,"Individual",null,"DC"]
[null,null,null,null,null,null,null,null,"Serial Number","A149442",null,null,null,"Containment",null,"RP","X"]
[null,"Replacement",null,null,null,null,null,null,null,null,null,null,null,"Fire Protection","X","DDC"]
[null,"Existing","X",null,null,"Location Of Assembly",null,null,"East Back Entry"]
[null,"New",null,null,null,"Assembly Connected To What Equipment",null,null,null,null,null,"Domestic Water"]
[]
[null,"CHECK VALVE #1",null,null,null,"CHECK VALVE #2",null,null,null,"DP RELIEF VALVE",null,null,null,"SVB & PVB AIR INLET"]
[]
["INITIAL ","PSI Across",null,8.1,null,"PSI Across",null,"Okay",null,null,"Opened @ ",2.2000000000000002,"PSI",null,"Opened @ ",null,"PSI"]
["TEST"]
[null,null,null,"Close Tight","X",null,null,"Close Tight","X",null,null,"Close Tight","X",null,null,"Close Tight"]
[null,null,null,null,null,null,null,null,null,null,null,"Did Not Open",null,null,null,"Did Not Open"]
[null,null,null,"Leaked",null,null,null,"Leaked",null,null,null,"Leaked",null,null,null,"Leaked"]
[]
[]
[null,"Parts",null,null,null,"Parts",null,null,null,"Parts",null,null,null,"Parts"]
[null,"Cleaned",null,"Installed",null,"Cleaned",null,"Installed",null,"Cleaned",null,"Installed",null,"Cleaned",null,"Installed"]
[]
[null,null,"Disk",null,null,null,"Disk",null,null,null,"Disk Diaphragm",null,null,null,"Air Inlet"]
["REPAIRS",null,"Spring",null,null,null,"Spring",null,null,null,"Spring",null,null,null,"Disk"]
[null,null,"Guide",null,null,null,"Guide",null,null,null,"Guide",null,null,null,"Air Inlet"]
[null,null,"Seat",null,null,null,"Seat",null,null,null,"Seat",null,null,null,"Spring"]
[null,null,"O-Rings",null,null,null,"O-Rings",null,null,null,"O-Rings"]
[null,null,"All Parts",null,null,null,"All Parts",null,null,null,"All Parts",null,null,null,"All Parts"]
[null,null,"OTHER",null,null,null,"OTHER",null,null,null,"OTHER",null,null,null,"OTHER"]
[null,"Describe:",null,null,null,"Describe:",null,null,null,"Describe:",null,null,null,"Describe:"]
[]
[]
[]
[]
[]
["FINAL","PSI Across",null,8.1,null,"PSI Across",null,"Okay",null,null,"Opened @ ",2.2000000000000002,"PSI",null,"Opened @ ",null,"PSI"]
["TEST"]
[null,null,null,"Close Tight","X",null,null,"Close Tight","X",null,null,"Close Tight","X",null,null,"Close Tight"]
[null,null,null,null,null,null,null,null,null,null,null,"Did Not Open",null,null,null,"Did Not Open"]
[null,null,null,"Leaked",null,null,null,"Leaked",null,null,null,"Leaked",null,null,null,"Leaked"]
[]
[]
[null,"Assembly     ",null,null,"Passed Date :","2013-10-25",null,null,null,null,null,"Failed Date :"]
[]
[null,"Comments:  "]
[]
[]
[]
[null,"Initial Test By :  ","Heath Dangerfield",null,null,null,null,null,null,"Final Test By :  "]
[null,"Repaired By :  ",null,null,null,null,"Date :  "]
["TEST KIT INFORMATION"]
[null,null,"Make Of The Test Kit","Mid-West Instrument",null,null,null,null,null,null,null,"Back Flow "]
[null,null,"Model :",845,null,null,null,null,null,null,null,"Inspectors Signature :","Heath Dangerfield"]
[null,null,"Serial Number :","05081169",null,null,null,null,null,null,null,"Ut. Inspectors Number :","#08065"]
[null,null,"Calibration Date :","2013-06-07",null,null,null,null,null,null,null,"Inspectors Number :","#45-01369"]
["I Certify the above has been performed and I am aware of the final performance"]
[]
[]
["Heath "]
[]
["TEST KIT INFORMATION"]
[null,null,"Make Of The Test Kit","Mid-West Instrument"]
[null,null,"Model :",845]
[null,null,"Serial Number :","05081169"]
[null,null,"Calibration Date :","2013-06-07"]
[null,null,"Inspectors Number :",null,"45-01369"]
[]
[]
["Lucas Montoya"]
[]
["TEST KIT INFORMATION"]
[null,null,"Make Of The Test Kit","Mid-West Instrument"]
[null,null,"Model :",845]
[null,null,"Serial Number :","08061431"]
[null,null,"Calibration Date :","2006-10-10"]
[null,null,"Inspectors Number :",null,"45-01092"]

{"sheet":"Water Rep","index":3,"n_rows":157,"n_cols":12,"rows_kept":157,"cut":false,"hidden":false,"merged":[[156,0,156,1],[156,2,156,5],[20,8,20,10],[105,6,105,10],[104,7,104,10],[119,3,119,4],[118,3,118,4],[117,3,117,4],[116,3,116,4],[115,3,115,4],[114,3,114,4],[132,8,132,10],[114,9,114,10],[115,9,115,10],[46,1,46,7],[47,1,47,7],[70,2,70,5],[98,2,98,10],[45,1,45,7],[92,7,92,10],[92,3,92,4],[7,2,7,4],[7,7,7,10],[8,2,8,4],[8,7,8,10],[44,3,44,7],[9,7,9,10],[4,1,4,8],[6,0,6,1],[6,2,6,4],[6,7,6,10],[0,2,0,7],[1,1,1,8],[2,1,2,8],[3,1,3,8],[116,9,116,10],[117,9,117,10],[118,9,118,10],[119,9,119,10],[140,0,140,10],[132,4,132,5],[132,2,132,3],[123,4,123,10],[124,2,124,10],[125,2,125,10],[131,2,131,3],[133,2,133,3],[131,8,131,10],[133,8,133,10],[130,8,130,10],[146,0,146,10],[147,0,147,10],[130,2,130,3],[130,4,130,5],[150,0,150,10],[135,4,135,10],[136,0,136,10],[137,0,137,10],[138,0,138,10],[139,0,139,10],[131,4,131,5],[133,4,133,5],[143,6,143,10],[144,0,144,10],[145,0,145,10],[141,0,141,10],[151,0,151,10],[152,0,152,10],[153,0,153,10],[155,1,155,6],[155,8,155,10]]}
[null,null,"Fire Suppression Services, Inc."]
[null,"3802 South 2300 East"]
[null,"Millcreek, Utah  84109-3421"]
[null,"Contractor License No. 92-252208-5501"]
[null,"801.277.6464  •  800.273.6465  •  801.278.2199 - FAX"]
[]
["Mail Report To:",null,null,null,null,null,"Date:","2013-10-25"]
[null,null,null,null,null,null,"Location:"]
[null,null,null,null,null,null,"Inspector: ","Heath Dangerfield"]
[null,null,null,null,null,null,"Contact on Job:         "]
[" 1. GENERAL",null,null,null,null,null,null,null,"YES","N/A","NO"]
["a. Is the building occupied?………………………………………………………………………………………………",null,null,null,null,null,null,null,"X"]
["b. Are all systems in service?……………………………………………………………………………………………..",null,null,null,null,null,null,null,"X"]
["c. Is there a minimum of 18\" clearance between the top of storage and the sprinkler defect?…………………….",null,null,null,null,null,null,null,"X"]
["d. In areas protected by wet system, does the building appear to be properly heated in all areas, including"]
["    blind spaces, attics, and perimeter areas, where accessible?……………………………………………………..",null,null,null,null,null,null,null,"X"]
["e. Do all exterior openings appear to be protected against freezing?…………………………………………………",null,null,null,null,null,null,null,"X"]
["f. Does the hand hose on the sprinkler system appear to be satisfactory?………………………………….",null,null,null,null,null,null,null,null,"X"]
["g. Could the owner provide copies of as-built drawings?...............................................................................",null,null,null,null,null,null,null,null,null,"X"]
["h. Is hydraulic data placard in place?…………………………………………………………………………………….",null,null,null,null,null,null,null,null,null,"X"]
["i. When was systems Last 5 year inspection?............................................................................................   __________________",null,null,null,null,null,null,null,"2012-08-09"]
["j. Type of system?...................",null,"WET","X","DRY",null,"DELUGE"]
["k. Type of inspection?..............",null,"Annual","X","Semi-Annual",null,"Quarterly"]
[]
["2. CONTROL VALVES (See Item 14)"]
["a. Are all sprinkler system control valves and all other valves in the appropriate open or closed position?…",null,null,null,null,null,null,null,"X"]
["b. Are all control valves in the open position and locked or sealed or equipped with a tamper switch?…",null,null,null,null,null,null,null,"X"]
["c. Were all control valves exercised?………………………………………………………………………………",null,null,null,null,null,null,null,"X"]
["d. Were all underground valves accessible?……………………………………………………………………",null,null,null,null,null,null,null,"X"]
[]
["3. WATER SUPPLIES (See Item 15)"]
["a. Was a water flow test of main drain made at the sprinkler riser?…………………………………………",null,null,null,null,null,null,null,"X"]
[]
["4. TANKS, PUMPS, FIRE DEPARTMENT CONNECTIONS"]
["a. Are fire pumps, gravity tanks, reservoirs and pressure tanks in good condition and properly maintained?",null,null,null,null,null,null,null,null,"X"]
["b. Are fire dept connections in satisfactory condition, couplings free, caps in place, and check valves tight?",null,null,null,null,null,null,null,null,null,"X"]
["c. Are they accessible and visible?…………………………………………………………………………………",null,null,null,null,null,null,null,"X"]
[]
["5. WET SYSTEMS"]
["a. Are cold weather valves (O.S.&Y.) in the appropriate open or closed position?…………………",null,null,null,null,null,null,null,null,"X"]
["b. Have antifreeze system solutions been tested?………………………………………………",null,null,null,null,null,null,null,null,"X"]
["c. Were the antifreeze test results satisfactory?………………………………………………………",null,null,null,null,null,null,null,null,"X"]
["d. Antifreeze Solution FREEZING POINT ="]
[null,"F'",null,"F'",null,"F'",null,"F'"]
["e. Location of antifreeze systems?"]
["    Remarks:"]
[]
[]
[]
["6. DRY SYSTEMS (See Item 10 to 13)"]
["a. Is the dry valve in service?………………………………………………………………………………………….",null,null,null,null,null,null,null,null,"X"]
["b. Are the air pressure and priming water level in accordance with the manufacture's instructions?…",null,null,null,null,null,null,null,null,"X"]
["c. Has the operation of the air or nitrogen supply been tested?……………………………………………………",null,null,null,null,null,null,null,null,"X"]
["d. Is the air or nitrogen supply in service?……………………………………………………………………………",null,null,null,null,null,null,null,null,"X"]
["e. Were low points drained during this inspection?…………………………………………………………………",null,null,null,null,null,null,null,null,"X"]
["f. Did quick-opening devices operate satisfactorily?……………………………………………………………….",null,null,null,null,null,null,null,null,"X"]
["g. Did the dry valve trip properly during the trip pressure test?…………………………………………………..",null,null,null,null,null,null,null,null,"X"]
["h. Did the heating equipment in the dry-pipe valve room operate at the time of inspection?……………………",null,null,null,null,null,null,null,null,"X"]
["I. Has oil been checked in air compressor?………………………………………………………………………….",null,null,null,null,null,null,null,null,"X"]
["j. Has condensation been drained from air compressor tank?…………………………………………………….",null,null,null,null,null,null,null,null,"X"]
[]
["7. SPECIAL SYSTEMS - as defined in Section 1-3 (See Item 14)",null,null,null,null,null,null,null,"YES","N/A ","NO"]
["a. Did the deluge or pre-action valves operate properly during testing?………………………………………….",null,null,null,null,null,null,null,null,"X"]
["b. Did the heat-responsive devices operate properly during testing?…………………………………………….",null,null,null,null,null,null,null,null,"X"]
["c. Did the supervisory devices operate during testing?……………………………………………………………",null,null,null,null,null,null,null,null,"X"]
[]
["8. ALARMS"]
["a. Did the water motor and gong test satisfactorily?……………………………………………………………….",null,null,null,null,null,null,null,null,"X"]
["b. Did electric alarm test satisfactorily?……………………………………………………………………………..",null,null,null,null,null,null,null,"X"]
["c. Did supervisory devices operate during testing?……………………………………………………………….",null,null,null,null,null,null,null,"X"]
["d. Monitoring Co.",null,"Moutain Alarm",null,null,null,"Code"]
[]
["9. SPRINKLERS"]
["a. Are all sprinklers free from corrosion, loading or obstruction to spray discharge?………………………….",null,null,null,null,null,null,null,"X"]
["b. Are sprinklers less than 50 years old? (Sample testing required after 50 years)……………………………",null,null,null,null,null,null,null,"X"]
["c. Is stock of spare sprinklers available?……………………………………………………………………………",null,null,null,null,null,null,null,"X"]
["d. Is spare head wrench available?………………………………………………………………………………….",null,null,null,null,null,null,null,null,null,"X"]
["e. Does the exterior condition of sprinkler system appear to be satisfactory?………………………………….",null,null,null,null,null,null,null,null,null,"X"]
["f. Temperature. Are sprinklers of proper temperature ratings for their locations?……………………………..",null,null,null,null,null,null,null,"X"]
[]
["10. Date Dry-Pipe Valve trip tested (control valve partially open)*……………………………………………….",null,null,null,null,null,null,null,null,"X"]
[]
["11. Date Dry-Pipe Valve trip tested (control valve fully open)*…………………………………………………..",null,null,null,null,null,null,null,null,"X"]
[]
["12. Date quick-opening devices tested*…………………………………………………………………………….",null,null,null,null,null,null,null,null,"X"]
[]
["13. Date Deluge or Pre-action Valve tested*……………………………………………………………………….",null,null,null,null,null,null,null,null,"X"]
["*See Trip Test Table which follows."]
[]
["TRIP TEST TABLE"]
[null,null,"              Dry Valve",null,null,"                 Quick opening device"]
[null,"     Make","Model","       Serial #",null,"    Make","     Model","         Serial #"]
["   DRY PIPE"]
["OPERATING","Air Compressor","Time to trip",null,"     Water","       Air","  Trip Point","Time water reached","Alarm operated"]
["      TEST","On:","thru test pipe",null,"   Pressure","   Pressure","Air Pressure","test outlet","properly?"]
[null,"Off:","Minutes","Seconds","        PSI","        PSI","      PSI","Min          Sec.","Yes","No"]
[null,"Without QOD"]
["N/A","With QOD"]
[null,"If no, explain:"]
[]
[]
[null,"Operation:      Pneumatic         Electric            Hydraulic"]
[null,"Piping supervised?        Yes       No",null,null,null,"Detecting media supervised?       Yes        No"]
[null,"Does valve operate from the manual trip and /or remote control station?      Yes      No"]
["DELUGE &","Is there an accessible facility in each circuit station?",null,null,null,null,"If no, explain:"]
["PREACTION",null,"Yes","No"]
["VALVE","      Make","  Model","Does each circuit operate",null,null,"Does each circuit",null,"Maximum time to"]
[null,null,null,"supervision loss alarm?",null,null,"operate valve release?",null,"operate release?"]
["N/A",null,null,"Yes ","No",null,"Yes         ","No","Min.","Sec."]
[]
[]
["14. SPECIAL SYSTEMS"]
[]
["              Control Valves",null," Number","            Type",null,"    Open","   Secured","   Closed","Signs","Exercised"]
["City connection control valves",null,1,"GATE",null,null,null,null,"X","X"]
["Tank control valves"]
["Pump control valves"]
["Sectional control valves"]
["System control valves",null,2,"BFV",null,"X","X","X","X","X"]
["Other control valves"]
[]
[]
["15. EQUIPMENT"]
["a. Make & model number of sprinkler valve:",null,null,null,"Ames 2000B 1 1/4\" inch DC"]
["b. Type of heads:",null,"V2708 155° white pendant, TY3131 155° brass upright"]
["c. Type of canopies:",null,"Concealer White"]
[]
["16. MAIN DRAIN TEST AT SPRINKLER RISER"]
["Water supply source",null,"City ","X","Tank ",null,"Pump",null,"PSI",null,"N/A"]
[]
["Last water","Date","Test pipe location",null,"Size Test Pipe",null,"Initial Pressure","Static Pressure","Residual Pressure"]
["Flow test                                                                                                                                                                                      "]
["This water","Date","Test pipe location",null,"Size Test Pipe",null,"Initial Pressure","Static Pressure","Residual Pressure"]
["Flow test                                                                                                                                                                                      ","2013-10-25","Riser",null,"1 1/4\" inch",null,110,110,105]
["a. Did water pressure return to normal with in 90 seconds?.........................................................................",null,null,null,null,null,null,null,"X","Pass",null,"Fail"]
["17. Explain any \"NO\" answers & comments:",null,null,null,"No spare head wrench in spare head box. Alarm pane, dialer trouble, silence and "]
["reset buttons do not respond. West vestibule, no coverage in, recommend adding one (1) pendant head."]
[]
[]
[]
[]
[]
[]
["18. Adjustments or corrections made during this inspection:"]
[]
[]
[]
[]
[]
["19. Although these comments are not the result of an engineering review, the following desirable improvements are recommended:"]
[]
[]
[]
[]
[]
["Signature:","Heath Dangerfield",null,null,null,null,null,"Date:","2013-10-25"]
["Utah State License Number:",null,61931]